Cogmind - Beta 16 *** ADVENTURER MODE // 2025.10.23 @ 18:55:30 Player: Plonker Result: Destroyed by S-27 Virus with Autogun Performance ------------- Evolutions (3) 1500 Regions Visited (9) 1800 Robots Destroyed (23) 115 Value Destroyed (642) 642 Prototype IDs (19) 380 Alien Tech Used (0) 0 Bonus (302) 302 TOTAL SCORE: 4739 Bonus ------- High Alert Combat Kills 2 Met Data Miner 300 Cogmind --------- Core Integrity 0/700 Matter 300/300 Energy 100/100 System Corruption 2% Temperature Cool (0) Movement Core (50) Location -6/Proximity Caves Parts ------- > --- POWER (2) -------- (None) > --- PROPULSION (4) --- (None) > --- UTILITY (4) ------ Advanced Terrain Scan Processor > --- WEAPON (3) ------- (None) > --- INVENTORY (5) ---- (None) Peak State ------------ > --- POWER ------------ Improved Deuterium Engine Improved Deuterium Engine > --- PROPULSION ------- VTOL Module Improved Flight Unit Cesium-ion Thruster Improved VTOL Module > --- UTILITY ---------- Weight Redist. System Improved Terrain Scan Processor Seismic Detector Targeting Computer > --- WEAPON ----------- Light Assault Rifle Flak Gun Heavy Mace > --- INVENTORY -------- VTOL Module VTOL Module [Rating: 35] Favorites ----------- Power Improved Deuterium Engine Engine Improved Deuterium Engine Propulsion VTOL Module Wheel Compact Wheel Hover Unit Hover Unit Flight Unit VTOL Module Utility Hacking Suite Device ECM Suite Storage Small Storage Unit Processor Advanced Terrain Scan Processor Hackware Hacking Suite Weapon Small Laser Energy Gun Small Laser Energy Cannon EM Pulse Cannon Ballistic Gun Flak Gun Launcher Rocket Launcher Impact Weapon Heavy Mace Special Melee Weapon Datajack Build | -11 -10 -9 -9 -8 -7 -7 -7 -7 -6 ------- Run | Yrd Mat Mat Min Mat Fac Low Low Dat Pro Slots Evolved 6 | . . 2 . 2 2 . . . . Power 1 | . . 1 . . . . . . . Propulsion 2 | . . 1 . . 1 . . . . Utility 2 | . . . . 1 1 . . . . Weapon 1 | . . . . 1 . . . . . Parts Attached 42 | 6 2 5 1 5 13 4 6 . . Power 6 | 1 . 1 . . 2 1 1 . . Engine 6 | 1 . 1 . . 2 1 1 . . Core . | . . . . . . . . . . Reactor . | . . . . . . . . . . Propulsion 13 | 2 2 1 . 2 3 1 2 . . Treads . | . . . . . . . . . . Leg . | . . . . . . . . . . Wheel 4 | 2 . . . . . . 2 . . Hover 1 | . . 1 . . . . . . . Flight 8 | . 2 . . 2 3 1 . . . Utility 13 | 1 . 2 . 2 5 2 1 . . Device 5 | . . 1 . 1 1 2 . . . Storage 3 | 1 . . . . 1 . 1 . . Processor 4 | . . 1 . 1 2 . . . . Hackware 1 | . . . . . 1 . . . . Protection . | . . . . . . . . . . Artifact . | . . . . . . . . . . Weapon 10 | 2 . 1 1 1 3 . 2 . . Energy Gun 3 | 2 . . . . 1 . . . . Energy Cannon 1 | . . . . . . . 1 . . Ballistic Gun 3 | . . . . . 2 . 1 . . Ballistic Cannon . | . . . . . . . . . . Launcher 1 | . . . 1 . . . . . . Special Weapon . | . . . . . . . . . . Impact Weapon 1 | . . . . 1 . . . . . Slashing Weapon . | . . . . . . . . . . Piercing Weapon . | . . . . . . . . . . Special Melee Weapon 1 | . . 1 . . . . . . . Unidentified Prototypes 2 | . . . . 1 1 . . . . Parts Lost 19 | . . . . 4 2 5 . 7 1 Power 5 | . . . . 1 1 2 . 1 . Propulsion 5 | . . . . 1 . 2 . 2 . Utility 5 | . . . . . 1 1 . 2 1 Weapon 4 | . . . . 2 . . . 2 . Highest Loss Streak 7 | . . . . 3 1 5 . 7 1 To Critical Strikes . | . . . . . . . . . . Average Backups 1 | . 2 1 2 3 2 . 1 . . Power . | . 1 . . . . . . . . Propulsion . | . . . 1 2 1 . . . . Utility . | . . . . . . . . . . Weapon . | . . 1 1 1 . . 1 . . Tool/Special . | . . . . . . . . . . Unused Backups 1 | . . . . . 1 . . . . Power . | . . . . . . . . . . Propulsion 1 | . . . . . 1 . . . . Utility . | . . . . . . . . . . Weapon . | . . . . . . . . . . Tool/Special . | . . . . . . . . . . Average Slot Usage (%) 71 | . 85 83 100 79 80 75 45 56 13 Engine 11 | . 14 16 22 15 11 14 1 4 . Wheel 4 | . 28 . . . . . 7 12 . Hover 1 | . . 5 11 1 . . . . . Flight 18 | . . 22 22 22 30 29 12 . . Device 9 | . . 8 11 16 12 14 7 5 . Storage 2 | . 14 . . . 1 . . 5 . Processor 7 | . . 8 11 9 11 7 7 7 7 Hackware 3 | . . . . . 2 7 7 7 5 Energy Gun 5 | . 28 18 7 . . . . . . Ballistic Gun 1 | . . . . . 5 . . 5 . Special Melee Weapon 1 | . . 3 11 6 . . . . . Peak Build Rating 35 | 6 6 11 12 19 35 30 31 31 7 Average Rating 19 | 4 5 9 11 15 28 28 21 25 6 On Entrance 13 | . 6 5 11 12 18 30 14 31 7 Avg Prop Armor Cover (%) 7 | . . 6 6 6 . . 9 . . Naked Turns . | . . . . . . . . . . Heaviest Build 25 | 10 10 10 13 14 25 23 16 16 . Greatest Support 40 | 32 32 14 14 20 25 24 40 40 3 Greatest Overweight (x) 2 | . . . . . . 2 . 1 . Average Overweight (x) . | . . . . . . . . . . Largest Inventory Capacity 8 | 8 8 5 5 5 5 5 5 5 5 Average Capacity 5 | 6 7 5 5 5 5 5 5 5 5 Most Carried 6 | 1 6 3 3 5 5 2 4 . . Average Carried 1 | . 2 1 2 3 1 . 1 . . Final Capacity 8 | 8 5 5 5 5 5 5 5 5 5 Final Carried 4 | 1 2 2 2 4 2 . . . . Class Distribution -------------------- 41% | Hacker-Mutant 30% | Mutant 13% | Sprinter 7% | Hacker-Sprinter 6% | Derelict-Mutant Dominant Class ---------------- Mutant | -10/Materials Mutant | -9/Materials Mutant | -9/Mines Sprinter | -8/Materials Sprinter | -7/Factory Hacker-Mutant | -7/Lower Caves Hacker-Mutant | -7/Lower Caves Derelict-Mutant | -7/Data Miner Hacker-Mutant | -6/Proximity Caves Resources | -11 -10 -9 -9 -8 -7 -7 -7 -7 -6 ----------- Run | Yrd Mat Mat Min Mat Fac Low Low Dat Pro Matter Collected 822 | 207 33 26 48 261 14 86 147 . . Remotely . | . . . . . . . . . . Salvage Created 521 | . 31 . 48 389 53 . . . . Parts 30 | . 3 . 2 22 3 . . . . Haulers Intercepted 1 | . . . . 1 . . . . . Recyclers Shooed . | . . . . . . . . . . Parts Field Recycled . | . . . . . . . . . . Retrieved Matter . | . . . . . . . . . . Parts Self-Destructed 3 | . . . . . . . 3 . . Prevented . | . . . . . . . . . . Parts Restored . | . . . . . . . . . . Kills | -11 -10 -9 -9 -8 -7 -7 -7 -7 -6 ------- Run | Yrd Mat Mat Min Mat Fac Low Low Dat Pro Combat Hostiles Destroyed 18 | . 2 . 1 12 3 . . . . Guns 5 | . 2 . . . 3 . . . . AOE 13 | . . . 1 12 . . . . . Classes Destroyed 9 | . 1 . 1 7 . . . . . Worker 1 | . . . . 1 . . . . . Builder 1 | . . . . 1 . . . . . Tunneler 1 | . . . . 1 . . . . . Hauler 1 | . . . . 1 . . . . . Watcher 1 | . . . . 1 . . . . . Swarmer 9 | . 2 . . 4 3 . . . . Grunt 7 | . . . 1 6 . . . . . Duelist 1 | . . . . 1 . . . . . Sentry 1 | . . . . 1 . . . . . Best Kill Streak 9 | . 2 . 1 9 3 . . . . Combat Bots Only 7 | . 2 . 1 7 3 . . . . Max Kills in Single Turn 3 | . 1 . 1 3 1 . . . . Gunslinging . | . . . . . . . . . . Exploded 2 | . . . 1 2 . . . . . Melee . | . . . . . . . . . . Uniques/NPCs Destroyed . | . . . . . . . . . . Combat | -11 -10 -9 -9 -8 -7 -7 -7 -7 -6 -------- Run | Yrd Mat Mat Min Mat Fac Low Low Dat Pro Hostile Shots Fired 275 | . 20 28 2 59 54 52 . 35 25 Missed 123 | . 8 17 1 32 25 21 . 14 5 Hits 152 | . 12 11 1 27 29 31 . 21 20 Projectile 152 | . 12 11 1 27 29 31 . 21 20 Critical Strikes 3 | . . 1 . . . 1 . . 1 Damage Taken 2178 | . 100 116 14 324 277 310 . 789 248 Core 850 | . 26 20 . 101 50 81 . 347 225 Absorbed by Shields . | . . . . . . . . . . Ignored by Resistances 615 | . 31 33 4 94 85 94 . 208 66 Core Remaining (%) 91 | 100 89 . 95 81 . . . . . Volleys Fired 34 | . 2 1 1 18 8 . . 4 . Largest 2 | . 2 1 1 1 2 . . 2 . Hottest 88 | . 80 40 33 33 48 . . 88 . Shots Fired 45 | . 4 1 1 18 16 . . 5 . Gun 25 | . 4 1 . . 16 . . 4 . Cannon 1 | . . . . . . . . 1 . Launcher 19 | . . . 1 18 . . . . . Special . | . . . . . . . . . . Kinetic 20 | . . . . . 16 . . 4 . Thermal 5 | . 4 1 . . . . . . . Explosive 19 | . . . 1 18 . . . . . Electromagnetic 1 | . . . . . . . . 1 . Robot Hit Streak 9 | . 2 3 . 5 9 . . 7 . Robot Miss Streak 5 | . 1 . 1 2 5 . . 2 . Penetration Max . | . . . . . . . . . . Secondary Targets . | . . . . . . . . . . Shots Hit Robots 28 | . 2 2 . 10 12 . . 2 . Core Hits 50 | . 2 . 1 31 14 . . 1 1 Critical Kills . | . . . . . . . . . . Critical Parts Destroyed . | . . . . . . . . . . Critical Strikes 1 | . . . . . . . . 1 . Destroy 1 | . . . . . . . . 1 . Melee Attacks 1 | . . 1 . . . . . . . Impact . | . . . . . . . . . . Slashing . | . . . . . . . . . . Piercing . | . . . . . . . . . . Sneak Attacks . | . . . . . . . . . . Combat Hostiles . | . . . . . . . . . . Follow-up Attacks . | . . . . . . . . . . Damage Inflicted 1657 | . 23 10 45 1276 189 . . 76 38 Guns 288 | . 23 10 . . 189 . . 66 . Cannons . | . . . . . . . . . . Explosions 1321 | . . . 45 1276 . . . . . Melee . | . . . . . . . . . . Ramming 48 | . . . . . . . . 10 38 Kinetic 255 | . . . . . 189 . . 66 . Thermal 33 | . 23 10 . . . . . . . Explosive 1321 | . . . 45 1276 . . . . . Electromagnetic . | . . . . . . . . . . Impact . | . . . . . . . . . . Slashing . | . . . . . . . . . . Piercing . | . . . . . . . . . . Highest Corruption 2 | . . . . . 1 1 1 1 2 Average Corruption 1 | . . . . . 1 1 1 1 1 Corruption Purged . | . . . . . . . . . . Corruption Blocked . | . . . . . . . . . . Effects 2 | . . . . . . 2 . . . Message Errors 1 | . . . . . . 1 . . . Energy Discharges 1 | . . . . . . 1 . . . Overload Shots . | . . . . . . . . . . Overflow Damage 79 | . . . . 79 . . . . . Projectiles . | . . . . . . . . . . Explosions 79 | . . . . 79 . . . . . Melee . | . . . . . . . . . . Knockbacks . | . . . . . . . . . . Impact . | . . . . . . . . . . Kinetic . | . . . . . . . . . . Secondary . | . . . . . . . . . . Self-Inflicted Damage 117 | . . . . 94 . . . 5 18 Shots 4 | . . . . 4 . . . . . Rammed 10 | . . . . . . . . 2 8 Targets Rammed 10 | . . . . . . . . 2 8 Kicked . | . . . . . . . . . . Crushed . | . . . . . . . . . . Highest Temperature 36 | . 36 10 . 11 8 . . 15 . Average Temperature 6 | . 20 7 . 4 3 . . 10 . Received Heat Transfer 240 | . 66 69 9 72 18 6 . . . Siege Activations . | . . . . . . . . . . Martial Activations . | . . . . . . . . . . Shielding Activations . | . . . . . . . . . . Robots Disrupted . | . . . . . . . . . . Combat Hostiles . | . . . . . . . . . . Robots Corrupted . | . . . . . . . . . . Combat Hostiles . | . . . . . . . . . . Parts Fried . | . . . . . . . . . . Impact Corruptions . | . . . . . . . . . . Robots Melted . | . . . . . . . . . . Combat Hostiles . | . . . . . . . . . . Parts Melted . | . . . . . . . . . . Heat Transferred 75 | . 50 25 . . . . . . . Parts Sabotaged . | . . . . . . . . . . Parts Stolen . | . . . . . . . . . . Parts Stripped . | . . . . . . . . . . Power Chain Reactions . | . . . . . . . . . . Alert | -11 -10 -9 -9 -8 -7 -7 -7 -7 -6 ------- Run | Yrd Mat Mat Min Mat Fac Low Low Dat Pro Maximum Alert Level 2 | . . . . 2 1 . . . . Low Security (%) 75 | 100 100 100 100 44 53 . . . . Level 1 21 | . . . . 37 46 . . . . Level 2 3 | . . . . 17 . . . . . Level 3 . | . . . . . . . . . . Level 4 . | . . . . . . . . . . Level 5 . | . . . . . . . . . . High Security . | . . . . . . . . . . Max Security . | . . . . . . . . . . Peak Influence 426 | . 70 6 63 426 227 . . . . Initial 165 | . . . . 20 165 . . . . Average 110 | . 14 1 21 248 190 . . . . Influence Increases 864 | . 90 9 73 516 161 . . . 15 Destroy 0b10 Robot/C 360 | . 40 . 20 240 60 . . . . Destroy 0b10 Robot/NC 25 | . . . . 25 . . . . . Destroy Leader 74 | . 10 . 10 44 10 . . . . Successful Hack 64 | . 10 9 . 14 31 . . . . Disable Machine 36 | . . . . 36 . . . . . Destroy Structure 125 | . . . 13 112 . . . . . Partial Spotted 30 | . . . . 15 15 . . . . Lose Combat Pursuer 150 | . 30 . 30 30 45 . . . 15 Influence Decreases 849 | . 90 9 10 153 391 196 . . . Entered New Map 393 | . . . . 43 261 89 . . . Time Decay 330 | . 24 9 10 70 110 107 . . . Lost Part 60 | . . . . 40 20 . . . . Purge Threat 66 | . 66 . . . . . . . . Squads Dispatched 11 | . . 2 . 5 4 . . . . Investigation 3 | . . 2 . 1 . . . . . Extermination 2 | . . . . . 2 . . . . Reinforcement 3 | . . . . 1 2 . . . . Assault . | . . . . . . . . . . Garrison 3 | . . . . 3 . . . . . Intercept . | . . . . . . . . . . Searches Triggered . | . . . . . . . . . . Construction Impeded 1 | . . . . 1 . . . . . Haulers Reinforced . | . . . . . . . . . . Active Scanning Responses . | . . . . . . . . . . Cargo Convoy Interrupts . | . . . . . . . . . . Stealth | -11 -10 -9 -9 -8 -7 -7 -7 -7 -6 --------- Run | Yrd Mat Mat Min Mat Fac Low Low Dat Pro Distress Signals 4 | . . 1 . 2 1 . . . . Communications Jammed . | . . . . . . . . . . Distress Signals . | . . . . . . . . . . Times Spotted 69 | . 6 9 2 20 14 5 . 8 5 Peak Tracking Total 8 | . 4 8 2 7 6 4 . 4 4 Tactical Retreats 9 | . 2 . 1 1 3 1 . . 1 ECM-based Alert Blocks 1 | . . . . . . 1 . . . Traps | -11 -10 -9 -9 -8 -7 -7 -7 -7 -6 ------- Run | Yrd Mat Mat Min Mat Fac Low Low Dat Pro Traps Triggered 1 | . . 1 . . . . . . . Indirectly . | . . . . . . . . . . Trap Hack Attempts . | . . . . . . . . . . Triggered . | . . . . . . . . . . Disarmed . | . . . . . . . . . . Reprogrammed . | . . . . . . . . . . Reused . | . . . . . . . . . . Traps Extracted . | . . . . . . . . . . Installed . | . . . . . . . . . . Triggered . | . . . . . . . . . . Machines | -11 -10 -9 -9 -8 -7 -7 -7 -7 -6 ---------- Run | Yrd Mat Mat Min Mat Fac Low Low Dat Pro Machines Disabled 5 | . . . . 4 . . . 1 . Max in Single Turn 1 | . . . . 1 . . . 1 . Machines Repaired . | . . . . . . . . . . Machines Dismantled . | . . . . . . . . . . Machines Sabotaged . | . . . . . . . . . . Overloaded Fab Kills . | . . . . . . . . . . Hacking | -11 -10 -9 -9 -8 -7 -7 -7 -7 -6 --------- Run | Yrd Mat Mat Min Mat Fac Low Low Dat Pro Machines Accessed 22 | . 5 5 . 3 5 . . 4 . Terminals 17 | . 5 5 . 3 4 . . . . Fabricators . | . . . . . . . . . . Repair Stations . | . . . . . . . . . . Recycling Units . | . . . . . . . . . . Scanalyzers . | . . . . . . . . . . Garrison Access 1 | . . . . . 1 . . . . Total Hacks 96 | . 23 20 . 11 14 . . 28 . Successful 68 | . 17 9 . 8 6 . . 28 . Failed 28 | . 6 11 . 3 8 . . . . Catastrophic 1 | . 1 . . . . . . . . Database Lockouts . | . . . . . . . . . . Manual 39 | . 11 11 . 6 11 . . . . Terminals 66 | . 23 20 . 11 12 . . . . Fabricators . | . . . . . . . . . . Repair Stations . | . . . . . . . . . . Recycling Units . | . . . . . . . . . . Scanalyzers . | . . . . . . . . . . Garrison Access 2 | . . . . . 2 . . . . Terminal Hacks 49 | . 12 4 . 5 . . . 28 . Record 17 | . 3 . . 3 . . . 11 . Part Schematic 11 | . . . . . . . . 11 . Robot Schematic 3 | . . . . . . . . 3 . Prototype ID Bank 8 | . 2 2 . 1 . . . 3 . Branch Access Points 1 | . 1 . . . . . . . . Emergency Access Points 2 | . . 1 . 1 . . . . . Unreport Threat 1 | . 1 . . . . . . . . Locate Traps 1 | . . 1 . . . . . . . Maintenance Status 1 | . 1 . . . . . . . . Recall Investigation 1 | . 1 . . . . . . . . Recall Reinforcements 1 | . 1 . . . . . . . . Zone Layout 2 | . 2 . . . . . . . . Fabricator Hacks . | . . . . . . . . . . Repair Station Hacks . | . . . . . . . . . . Recycling Unit Hacks . | . . . . . . . . . . Scanalyzer . | . . . . . . . . . . Garrison Access Hacks 2 | . . . . . 2 . . . . Unlock Access 1 | . . . . . 1 . . . . Coupler Status 1 | . . . . . 1 . . . . Unauthorized Hacks 17 | . 5 5 . 3 4 . . . . Terminals 17 | . 5 5 . 3 4 . . . . Botnet 17 | . 5 5 . 3 4 . . . . Fabricators . | . . . . . . . . . . Repair Stations . | . . . . . . . . . . Recycling Units . | . . . . . . . . . . Scanalyzers . | . . . . . . . . . . Garrison Access . | . . . . . . . . . . Data Cores Recovered . | . . . . . . . . . . Used . | . . . . . . . . . . Hacking Detections 15 | . 3 5 . 2 5 . . . . Full Trace Events 3 | . 1 1 . 1 . . . . . Feedback Events . | . . . . . . . . . . Feedback Blocked . | . . . . . . . . . . Robot Schematics Acquired 3 | . . . . . . . . 3 . Robots Built . | . . . . . . . . . . Authchips . | . . . . . . . . . . Time . | . . . . . . . . . . Total Robot Build Rating . | . . . . . . . . . . Part Schematics Acquired 11 | . . . . . . . . 11 . Parts Built . | . . . . . . . . . . Authchips . | . . . . . . . . . . Time . | . . . . . . . . . . Total Part Build Rating . | . . . . . . . . . . Part Studies Acquired . | . . . . . . . . . . Parts Repaired . | . . . . . . . . . . Time . | . . . . . . . . . . Parts Recycled . | . . . . . . . . . . Recycled Matter . | . . . . . . . . . . Retrieved Matter . | . . . . . . . . . . Retrieved Components . | . . . . . . . . . . Parts Scanalyzed . | . . . . . . . . . . Part Schematics Acquired . | . . . . . . . . . . Parts Damaged . | . . . . . . . . . . Bothacking | -11 -10 -9 -9 -8 -7 -7 -7 -7 -6 ------------ Run | Yrd Mat Mat Min Mat Fac Low Low Dat Pro Used RIF Installer . | . . . . . . . . . . Robots Hacked 1 | . . 1 . . . . . . . Non-combat 1 | . . 1 . . . . . . . Combat . | . . . . . . . . . . Robot Hacks Applied 1 | . . 1 . . . . . . . parse_system 1 | . . 1 . . . . . . . Relay Couplers Released . | . . . . . . . . . . Fabnet Peak Effective % . | . . . . . . . . . . Robots Rewired . | . . . . . . . . . . Allies Hacked . | . . . . . . . . . . Hacks Repelled . | . . . . . . . . . . Allies | -11 -10 -9 -9 -8 -7 -7 -7 -7 -6 -------- Run | Yrd Mat Mat Min Mat Fac Low Low Dat Pro Total Allies . | . . . . . . . . . . Largest Group . | . . . . . . . . . . Highest-Rated Group . | . . . . . . . . . . Highest-Rated Ally . | . . . . . . . . . . Total Orders . | . . . . . . . . . . Ally Attacks . | . . . . . . . . . . Total Damage . | . . . . . . . . . . Kills . | . . . . . . . . . . Allies Corrupted . | . . . . . . . . . . Allies Melted . | . . . . . . . . . . Intel | -11 -10 -9 -9 -8 -7 -7 -7 -7 -6 ------- Run | Yrd Mat Mat Min Mat Fac Low Low Dat Pro Active Infowar (turns) 765 | . . . . 145 119 381 50 70 . Sensors 369 | . . . . . . 369 . . . Seismic 264 | . . . . 145 119 . . . . ECM 501 | . . . . . . 381 50 70 . Robot Analysis Total . | . . . . . . . . . . Derelict Logs Recovered 3 | . . . . . . 1 1 . 1 Drone Launches . | . . . . . . . . . . Drone Recoveries . | . . . . . . . . . . Exploration | -11 -10 -9 -9 -8 -7 -7 -7 -7 -6 ------------- Run | Yrd Mat Mat Min Mat Fac Low Low Dat Pro Turns Passed 1529 | 41 176 120 59 156 227 396 200 84 70 Spaces Moved 2412 | 29 167 285 147 319 629 410 213 89 124 Core 152 | 1 . . . . . . . 27 124 Treads . | . . . . . . . . . . Legs . | . . . . . . . . . . Wheels 421 | 28 159 . . . . . 172 62 . Hover . | . . . . . . . . . . Flight 1839 | . 8 285 147 319 629 410 41 . . Fastest Speed 27 | 50 37 37 37 32 27 27 34 50 50 Average Speed 55 | 98 96 37 37 33 27 94 86 82 50 Slowest Speed 184 | 100 100 37 37 37 28 184 100 100 50 Overloaded Moves . | . . . . . . . . . . Propulsion Burnouts . | . . . . . . . . . . Robots Hopped 2 | . . 1 . . 1 . . . . Potential Cave-ins . | . . . . . . . . . . Cave-ins Triggered . | . . . . . . . . . . Exploration Rate (%) 35 | 3 33 35 27 31 25 63 47 77 14 Regions Visited 9 Branch Regions 5 Pre-discovered Areas 1 | . . . . . . . . 1 . Known Exits Taken . | . . . . . . . . . . Unknown Exits Taken 9 | 1 1 1 1 1 1 1 1 1 . Scrap Searched 3 | . . . . . . 1 2 . . Spaces Dug . | . . . . . . . . . . Terrain Destroyed 133 | . . . 15 118 . . . . . Melee . | . . . . . . . . . . Projectile . | . . . . . . . . . . AOE 133 | . . . 15 118 . . . . . Terrain Rammed . | . . . . . . . . . . Walls Destroyed . | . . . . . . . . . . Machines Disabled . | . . . . . . . . . . Actions | -11 -10 -9 -9 -8 -7 -7 -7 -7 -6 --------- Run | Yrd Mat Mat Min Mat Fac Low Low Dat Pro Total 2559 | 41 178 296 150 348 672 419 229 94 132 Wait 3 | . . . . . . . 3 . . Move 2399 | 28 166 282 146 318 626 409 212 88 124 Hop 2 | . . 1 . . 1 . . . . Pick Up 42 | 7 3 5 1 5 13 2 6 . . Fast Attach 1 | . . . . 1 . . . . . Attach 41 | 6 2 5 1 4 13 4 6 . . Detach 3 | . 2 . . 1 . . . . . Swap . | . . . . . . . . . . Drop 23 | . 3 1 1 1 11 4 2 . . Fire 34 | . 2 1 1 18 8 . . 4 . Melee 1 | . . 1 . . . . . . . Ram 10 | . . . . . . . . 2 8 Kick . | . . . . . . . . . . Crush . | . . . . . . . . . . Escape Stasis . | . . . . . . . . . . Rewire . | . . . . . . . . . . Trap . | . . . . . . . . . . Miscellaneous . | . . . . . . . . . . Route ------- -11/Scrapyard -10/Materials (discovered 3 exits: *Mat / Min x2) -9/Materials -9/Mines -8/Materials -7/Factory (discovered 2 exits: [*Low] / Gar) -7/Lower Caves -7/Lower Caves -7/Data Miner -6/Proximity Caves History --------- Turn | Location | Event 20 | -11/Scrapyard | Discovered new exit (range 16) 42 | -11/Scrapyard | Entered Materials 91 | -10/Materials | Discovered new exit (range 19) 91 | -10/Materials | Identified exit to Mines 218 | -10/Materials | Entered another Materials area 218 | -9/Materials | Evolved 2 slots: Power x1, Propulsion x1 313 | -9/Materials | Build established: Mutant 331 | -9/Materials | Discovered new exit (range 16) 338 | -9/Materials | Entered Mines 369 | -9/Mines | Received a Rocket Launcher from a helpful Derelict 394 | -9/Mines | Discovered new exit (range 8) 397 | -9/Mines | Entered Materials 397 | -8/Materials | Evolved 2 slots: Utility x1, Weapon x1 521 | -8/Materials | Destroyed 7 combat bots 547 | -8/Materials | Lost 3 parts (1p2w) 548 | -8/Materials | Discovered new exit (range 15) 553 | -8/Materials | Entered Factory 553 | -7/Factory | Evolved 2 slots: Propulsion x1, Utility x1 722 | -7/Factory | Identified exit to Garrison 728 | -7/Factory | Discovered new exit (range 5) 780 | -7/Factory | Entered Lower Caves 1086 | -7/Lower Caves | Build established: Hacker-Mutant 1087 | -7/Lower Caves | Attracted the attention of an 0b10 checkpoint 1166 | -7/Lower Caves | Discovered new exit (range 15) 1176 | -7/Lower Caves | Entered another Lower Caves area 1185 | -7/Lower Caves | Spotted B-75 Beast 1203 | -7/Lower Caves | Lost 5 parts (2p2n1u) 1233 | -7/Lower Caves | Learned Factory terminal intel 1363 | -7/Lower Caves | Discovered new exit (range 9) 1376 | -7/Lower Caves | Entered Data Miner 1376 | -7/Data Miner | Discovered new exit (range 6) 1395 | -7/Data Miner | Met Data Miner 1407 | -7/Data Miner | Data Conduit disabled 1434 | -7/Data Miner | Learned location of Section 7 (-2) 1434 | -7/Data Miner | Acquired the access code to Warlord's prototype stash 1448 | -7/Data Miner | Core integrity fell below 50% 1460 | -7/Data Miner | Entered Proximity Caves 1464 | -6/Proximity Caves | Learned 12 Factory zone layouts 1477 | -6/Proximity Caves | Lost 7 parts (1p2n2u2w) 1524 | -6/Proximity Caves | Core integrity fell below 20% 1530 | -6/Proximity Caves | Destroyed by S-27 Virus with Autogun Last Messages --------------- 01437_ ORACLE Interface goes dark. 01438_ Mak. Power Source destroyed. 01442_ Enhanced Grunt suffers critical hit (Destroy). 01443_ Arm. Huge Wheel destroyed. 01444_ Arm. Wheel destroyed. 01446_ ECM Suite destroyed. 01446_ Hpw. Shotgun destroyed. 01446_ Com. Battery destroyed. 01447_ Slammed into Enhanced Grunt. [Achievement: For Emergencies Only] 01448_ Slammed into Enhanced Grunt. LOCATION=UNKNOWN GOAL=ESCAPE 01464_ Acquired derelict log, extracted data. Data stored: Factory zone layouts (x12). 01513_ Hacking Suite destroyed. 01523_ Slammed into S-27 Virus. 01525_ Destabilizing: System corrupted (+1). 01526_ Slammed into S-27 Virus. Map ----- +----------------------------------------------------+ | | | | | | | | | | | ?????????????????????????????????????????????????? | | ?????????????????????????????????????????????????? | | ?????????????????????????????????????????????????? | | ?????????????????????????????????????????????????? | | ?????????????????????????????????????????????????? | | ?????????????????????????????????????????????????? | | ?????????????????????????????????????????????????? | | ?????????????????????????????????????????????????? | | ?????????????????????????????????????????????????? | | ?????????????????????????????????????????????????? | | ?????????????????????????????????????????????????? | | ?????????????????????????????????????????????????? | | ?????????????????????????????????????????????????? | | ?????????????????????????????????????????????????? | | ???????????????????????###??????????????########## | | ???????????##????????### ####???????????# | | ???????????# #???????# ###??????????# | | ???????????# ##??#### ##??????#### | | ???????????# #### #??##### ## ## | | ???????????# ## #### ## #### | | ???????????# s@ ss #??# | | ????????????# %%%%%% #??? | | ????????????## # s ##### ##??? | | ????????????## ## ###???## ####???? | | ????????????# ## #### # ##??????# ##??????? | | ????????????# ## ###### #???????# #???????? | | ????????????##### #??# #??????# #??????? | | ????????????????# #??# #??????# #?????? | | ????????????????### ##?# #??????## ####?????# | | ?????????????????## ### #???????# #????????? | | ????????????????## ## ##?????? #????????? | | ??????????????### ##???? ????????? | | ?????????????## #??? ????????? | | ?????????##### ##???#### ???????? | | ?????????# ####???????# #???????? | | ????????# ##?##??????? ???????? | | ????????# ##### ### ##??????? ????????? | | ????????# ????# # ##??????????????????? | | ????????# ???? ## #??????????????????? | | ????????# ????# ## ####??????????????????? | | ????????##?????# #### #?????????????????????? | | ???????????????# ???## #?????????????????????? | | ???????????????# ????# # #?????????????????????? | | ???????????????# ????# ###?????????????????????? | | ???????????????# ???? #???????????????????????? | +----------------------------------------------------+ Best States ------------- Heat Dissipation 34 Energy Generation 27 Energy Capacity 490 Matter Stores 300 Matter Capacity 300 Sight Range 16 Robot Scan Range 15 Terrain Scan Density 310 ECM Strength 1 Additional Mass Support 6 Resistance: KI 20 Resistance: TH 20 Resistance: EX 20 Resistance: EM 20 Resistance: I 20 Resistance: S 20 Resistance: P 20 Evasion (%) 64 Targeting Accuracy 5 Offensive Hacking 20 Item Schematics ----------------- Combat Drone Bay | -7/Data Miner | Free Lgt. Regenerative Plating | -7/Data Miner | Free Multireflex Exoskeleton | -7/Data Miner | Free Thermal Defense Suite | -7/Data Miner | Free Imp. Lightning Gun | -7/Data Miner | Free Arm. Medium Treads | -7/Data Miner | Free Imp. Thermal Shield | -7/Data Miner | Free Mass Driver | -7/Data Miner | Free Arm. Leg | -7/Data Miner | Free Enh. Gauss Cannon | -7/Data Miner | Free Imp. Transmission Jammer | -7/Data Miner | Free Robot Schematics ------------------ Y-54 Guardian | -7/Data Miner | Free S-27 Virus | -7/Data Miner | Free G-47 Trooper | -7/Data Miner | Free Fabricated ------------ Nothing Repaired ---------- Nothing Studied --------- None Alien Tech Used ----------------- None Achievements -------------- For Emergencies Only Resistances Are Futile There's More Where That Came From Challenges ------------ None Game ------ Seed XenonLightpackFemtoactuators Manual? 0 Play Time 01:00:21 Cumulative 44.5 hours Start 2025.10.23 @ 17:54:57 End 2025.10.23 @ 18:55:30 Sessions 1 Manual Loads 0 Difficulty Adventurer Special Mode None Game No. 42 Rogue 0 Adventurer 42 Explorer 0 Win Type - Total 0 Types 0/0/0/0/0/0/0/0/0/0 Lore% 17 Gallery% 31 Achievement% 16 Wizard Run 0 Options --------- Layout 1 ASCII 0 Keyboard 0 Movement Mouse Keybinds 0 Fullscreen 1 Font 16/SmallcapsGlow Map View 25x20 Zoom Use 100% Tactical HUD 1 Map Filters NONE Filters NONE Steam SD RUN: f4558f93-cc7b-4e65-b64e-808d5d3193b6